[Event "*** Titled Tuesday 3|2 Blitz (Early)"]
[Site "Chess.com"]
[Date "2017.01.03"]
[Round "5"]
[White "jup1978"]
[Black "ajkom197"]
[Result "0-1"]
[WhiteElo "2240"]
[BlackElo "2307"]
[TimeControl "180+2"]
[EndTime "11:59:41 PST"]
[Termination "ajkom197 won by resignation"]

1. e4 {[%clk 0:03:02]} 1... c6 {[%clk 0:03:00.6]} 2. d4 {[%clk 0:03:01.3]} 2...
d5 {[%clk 0:03:01.5]} 3. Nd2 {[%clk 0:03:02.8]} 3... dxe4 {[%clk 0:03:02.4]} 4.
Nxe4 {[%clk 0:03:04.7]} 4... Nd7 {[%clk 0:03:04]} 5. Bc4 {[%clk 0:03:03.2]} 5...
Ngf6 {[%clk 0:03:04.7]} 6. Ng5 {[%clk 0:03:04]} 6... e6 {[%clk 0:03:05.8]} 7.
Qe2 {[%clk 0:03:02.9]} 7... Nb6 {[%clk 0:03:06.7]} 8. Bb3 {[%clk 0:03:04.4]}
8... h6 {[%clk 0:03:07.6]} 9. N5f3 {[%clk 0:03:05.9]} 9... Bd6 {[%clk
0:03:07.1]} 10. Ne5 {[%clk 0:03:06.9]} 10... Qc7 {[%clk 0:03:07.6]} 11. Ngf3
{[%clk 0:03:07.3]} 11... c5 {[%clk 0:03:07.3]} 12. Be3 {[%clk 0:03:03]} 12...
cxd4 {[%clk 0:03:01.5]} 13. Bxd4 {[%clk 0:03:04.9]} 13... O-O {[%clk 0:03:01.8]}
14. O-O-O {[%clk 0:03:04.4]} 14... Nbd5 {[%clk 0:02:59.2]} 15. g3 {[%clk
0:02:56.7]} 15... b6 {[%clk 0:02:59.1]} 16. Kb1 {[%clk 0:02:56.3]} 16... a5
{[%clk 0:02:59.3]} 17. c4 {[%clk 0:02:45.7]} 17... a4 {[%clk 0:02:54.3]} 18. Bc2
{[%clk 0:02:41]} 18... Nb4 {[%clk 0:02:55.1]} 19. Rhe1 {[%clk 0:02:30.1]} 19...
Nxc2 {[%clk 0:02:53.7]} 20. Qxc2 {[%clk 0:02:30.7]} 20... Bb7 {[%clk 0:02:53.5]}
21. h4 {[%clk 0:02:29]} 21... Rfd8 {[%clk 0:02:50.9]} 22. Rc1 {[%clk 0:02:22.1]}
22... Bb4 {[%clk 0:02:47.2]} 23. Bc3 {[%clk 0:02:10]} 23... Bxc3 {[%clk
0:02:35.4]} 24. Qxc3 {[%clk 0:02:11.9]} 24... Qc5 {[%clk 0:02:31]} 25. Qe3
{[%clk 0:01:59.7]} 25... Rac8 {[%clk 0:02:22.1]} 26. Qxc5 {[%clk 0:01:44.9]}
26... Rxc5 {[%clk 0:02:24]} 27. b3 {[%clk 0:01:45.3]} 27... axb3 {[%clk
0:02:23.3]} 28. axb3 {[%clk 0:01:47.2]} 28... Bxf3 {[%clk 0:02:19.6]} 29. Nxf3
{[%clk 0:01:46.9]} 29... Rd3 {[%clk 0:02:18.1]} 30. Re3 {[%clk 0:01:39.6]} 30...
Rxe3 {[%clk 0:02:17.3]} 31. fxe3 {[%clk 0:01:41.5]} 31... b5 {[%clk 0:02:18.4]}
32. cxb5 {[%clk 0:01:39.6]} 32... Rxb5 {[%clk 0:02:20.3]} 33. Kb2 {[%clk
0:01:40.6]} 33... Kf8 {[%clk 0:02:18.3]} 34. Ka3 {[%clk 0:01:34.8]} 34... Rb7
{[%clk 0:02:13.1]} 35. Nd4 {[%clk 0:01:32.2]} 35... Ke7 {[%clk 0:02:11.5]} 36.
b4 {[%clk 0:01:30]} 36... Nd5 {[%clk 0:02:12]} 37. b5 {[%clk 0:01:27.8]} 37...
Nxe3 {[%clk 0:02:11.4]} 38. Rb1 {[%clk 0:01:18.4]} 38... g5 {[%clk 0:02:08.7]}
39. hxg5 {[%clk 0:01:18.5]} 39... hxg5 {[%clk 0:02:10.6]} 40. Kb4 {[%clk
0:01:14.7]} 40... Kd6 {[%clk 0:01:58.8]} 41. Ka5 {[%clk 0:01:10.7]} 41... Nd5
{[%clk 0:01:57.1]} 42. Ka6 {[%clk 0:01:10.3]} 42... Rb6+ {[%clk 0:01:53.3]} 43.
Ka5 {[%clk 0:01:05.9]} 43... Rb8 {[%clk 0:01:52]} 44. b6 {[%clk 0:01:01.4]}
44... Ra8+ {[%clk 0:01:52.9]} 45. Kb5 {[%clk 0:01:02.2]} 45... Nc3+ {[%clk
0:01:54.1]} 0-1

[Event "*** Titled Tuesday 3|2 Blitz (Early)"]
[Site "Chess.com"]
[Date "2017.01.03"]
[Round "5"]
[White "bivark"]
[Black "FairChess_on_YouTube"]
[Result "0-1"]
[WhiteElo "2362"]
[BlackElo "2769"]
[TimeControl "180+2"]
[EndTime "12:00:02 PST"]
[Termination "FairChess_on_YouTube won on time"]

1. e4 {[%clk 0:03:02]} 1... c5 {[%clk 0:03:00.2]} 2. Nf3 {[%clk 0:03:02.1]} 2...
e6 {[%clk 0:03:01.5]} 3. d4 {[%clk 0:03:01.9]} 3... cxd4 {[%clk 0:03:03.4]} 4.
Nxd4 {[%clk 0:03:03.5]} 4... a6 {[%clk 0:03:04.2]} 5. Bd3 {[%clk 0:03:03.3]}
5... Bc5 {[%clk 0:03:04.5]} 6. Nb3 {[%clk 0:03:02.8]} 6... Ba7 {[%clk
0:03:05.3]} 7. O-O {[%clk 0:03:01.1]} 7... Qh4 {[%clk 0:03:04.7]} 8. Qe2 {[%clk
0:02:54.7]} 8... Nf6 {[%clk 0:03:04.8]} 9. h3 {[%clk 0:02:37]} 9... Nh5 {[%clk
0:03:03.5]} 10. Qg4 {[%clk 0:02:22.6]} 10... Qxg4 {[%clk 0:03:01.7]} 11. hxg4
{[%clk 0:02:23.8]} 11... Nf6 {[%clk 0:03:02.1]} 12. g5 {[%clk 0:02:23.9]} 12...
Ng4 {[%clk 0:03:02.6]} 13. Be2 {[%clk 0:02:14.5]} 13... h5 {[%clk 0:03:03.4]}
14. gxh6 {[%clk 0:02:08.1]} 14... Nxh6 {[%clk 0:03:04]} 15. c4 {[%clk
0:02:06.2]} 15... Nc6 {[%clk 0:02:58.4]} 16. Nc3 {[%clk 0:02:06.4]} 16... f6
{[%clk 0:02:50.6]} 17. Bf4 {[%clk 0:01:59.6]} 17... g5 {[%clk 0:02:46.9]} 18.
Bg3 {[%clk 0:01:57.7]} 18... f5 {[%clk 0:02:48]} 19. exf5 {[%clk 0:01:49]} 19...
Nxf5 {[%clk 0:02:48.6]} 20. Ne4 {[%clk 0:01:34.7]} 20... Nxg3 {[%clk 0:02:32.1]}
21. Nxg3 {[%clk 0:01:36.6]} 21... Ke7 {[%clk 0:02:25.1]} 22. Rac1 {[%clk
0:01:31.4]} 22... d6 {[%clk 0:02:24.3]} 23. Ne4 {[%clk 0:01:16.8]} 23... Bd7
{[%clk 0:02:21.7]} 24. Rfd1 {[%clk 0:01:06.9]} 24... Rh4 {[%clk 0:02:21.6]} 25.
Ng3 {[%clk 0:00:44.9]} 25... Rf8 {[%clk 0:02:19.7]} 26. c5 {[%clk 0:00:34.6]}
26... d5 {[%clk 0:02:18.7]} 27. Nd2 {[%clk 0:00:29.1]} 27... g4 {[%clk
0:02:14.9]} 28. a3 {[%clk 0:00:24.4]} 28... Ne5 {[%clk 0:02:09.5]} 29. b4 {[%clk
0:00:23.2]} 29... Ng6 {[%clk 0:02:10.1]} 30. Ndf1 {[%clk 0:00:21.3]} 30... Nf4
{[%clk 0:02:10.4]} 31. Bd3 {[%clk 0:00:21.3]} 31... Ba4 {[%clk 0:02:07.7]} 32.
Rd2 {[%clk 0:00:20.9]} 32... Bb8 {[%clk 0:02:09.1]} 33. Bc2 {[%clk 0:00:21.5]}
33... Bb5 {[%clk 0:02:09.7]} 34. Re1 {[%clk 0:00:22.2]} 34... Kd8 {[%clk
0:02:07.2]} 35. a4 {[%clk 0:00:18.8]} 35... Bxf1 {[%clk 0:02:04.9]} 36. Kxf1
{[%clk 0:00:14.5]} 36... Rfh8 {[%clk 0:02:05.8]} 37. Kg1 {[%clk 0:00:09.6]}
37... Rh2 {[%clk 0:02:05.1]} 38. Be4 {[%clk 0:00:05.2]} 38... Kc8 {[%clk
0:02:06.4]} 39. f3 {[%clk 0:00:02.6]} 39... dxe4 {[%clk 0:02:04.7]} 40. Rxe4
{[%clk 0:00:03.9]} 40... gxf3 {[%clk 0:02:04]} 0-1

[Event "*** Titled Tuesday 3|2 Blitz (Early)"]
[Site "Chess.com"]
[Date "2017.01.03"]
[Round "5"]
[White "Vrolijk"]
[Black "bugsbunny444"]
[Result "1-0"]
[WhiteElo "2266"]
[BlackElo "2349"]
[TimeControl "180+2"]
[EndTime "12:00:07 PST"]
[Termination "Vrolijk won by resignation"]

1. d4 {[%clk 0:03:02]} 1... e6 {[%clk 0:03:00.5]} 2. e4 {[%clk 0:02:43.9]} 2...
d5 {[%clk 0:03:01.1]} 3. Nc3 {[%clk 0:02:44.5]} 3... Nf6 {[%clk 0:03:02]} 4. e5
{[%clk 0:02:46.1]} 4... Nfd7 {[%clk 0:03:03.3]} 5. f4 {[%clk 0:02:47.7]} 5... c5
{[%clk 0:03:04.9]} 6. Nf3 {[%clk 0:02:49.2]} 6... Nc6 {[%clk 0:03:06.6]} 7. Be3
{[%clk 0:02:50.7]} 7... cxd4 {[%clk 0:03:08.3]} 8. Nxd4 {[%clk 0:02:52.6]} 8...
Bc5 {[%clk 0:03:10]} 9. Qd2 {[%clk 0:02:51.6]} 9... O-O {[%clk 0:03:11.5]} 10.
O-O-O {[%clk 0:02:52.2]} 10... a6 {[%clk 0:03:13]} 11. Qf2 {[%clk 0:02:51.6]}
11... Qe7 {[%clk 0:03:13.6]} 12. Bd3 {[%clk 0:02:39]} 12... f6 {[%clk 0:03:14]}
13. exf6 {[%clk 0:02:38.7]} 13... Nxf6 {[%clk 0:03:14.2]} 14. Nxc6 {[%clk
0:02:34.2]} 14... Bxe3+ {[%clk 0:03:06.7]} 15. Qxe3 {[%clk 0:02:36.1]} 15...
bxc6 {[%clk 0:03:05.6]} 16. Rhe1 {[%clk 0:02:29.6]} 16... Rb8 {[%clk 0:03:04.1]}
17. a3 {[%clk 0:02:14.6]} 17... Qd6 {[%clk 0:02:46]} 18. g3 {[%clk 0:02:09.5]}
18... c5 {[%clk 0:02:08]} 19. Qe5 {[%clk 0:02:08.4]} 19... Qb6 {[%clk
0:01:41.2]} 20. Na4 {[%clk 0:02:07.1]} 20... Qa7 {[%clk 0:01:39.3]} 21. Nxc5
{[%clk 0:02:01.3]} 21... Ng4 {[%clk 0:01:29.9]} 22. Qd4 {[%clk 0:01:52.5]} 22...
Qf7 {[%clk 0:01:08.9]} 23. Re2 {[%clk 0:01:30.2]} 23... a5 {[%clk 0:01:03.9]}
24. Rde1 {[%clk 0:01:29.9]} 24... Qh5 {[%clk 0:00:56.1]} 25. Nxe6 {[%clk
0:01:22.9]} 25... Bxe6 {[%clk 0:00:56.8]} 26. Rxe6 {[%clk 0:01:24.8]} 26... Nxh2
{[%clk 0:00:27.7]} 27. R6e5 {[%clk 0:01:05.6]} 27... Qf7 {[%clk 0:00:24.5]} 28.
Rh1 {[%clk 0:01:01.4]} 28... Nf3 {[%clk 0:00:15.4]} 29. Bxh7+ {[%clk 0:01:01.1]}
29... Kh8 {[%clk 0:00:17]} 30. Bg6+ {[%clk 0:01:00.4]} 1-0

[Event "*** Titled Tuesday 3|2 Blitz (Early)"]
[Site "Chess.com"]
[Date "2017.01.03"]
[Round "5"]
[White "Krutoy123"]
[Black "Gabrielian_Artur"]
[Result "1-0"]
[WhiteElo "2479"]
[BlackElo "2666"]
[TimeControl "180+2"]
[EndTime "12:00:27 PST"]
[Termination "Krutoy123 won by resignation"]

1. Nf3 {[%clk 0:03:01.9]} 1... Nf6 {[%clk 0:03:00.7]} 2. g3 {[%clk 0:03:03.5]}
2... g6 {[%clk 0:03:01.9]} 3. Bg2 {[%clk 0:03:04.9]} 3... Bg7 {[%clk 0:03:03.4]}
4. O-O {[%clk 0:03:06.6]} 4... O-O {[%clk 0:03:04.6]} 5. d3 {[%clk 0:03:07.8]}
5... d6 {[%clk 0:03:05.4]} 6. c4 {[%clk 0:03:08.4]} 6... e5 {[%clk 0:03:06.6]}
7. Nc3 {[%clk 0:03:08.8]} 7... Nc6 {[%clk 0:03:08]} 8. a3 {[%clk 0:03:05.5]}
8... a5 {[%clk 0:03:08.9]} 9. Rb1 {[%clk 0:03:03.4]} 9... Re8 {[%clk 0:03:09.8]}
10. Bg5 {[%clk 0:02:58.1]} 10... h6 {[%clk 0:03:07.4]} 11. Bxf6 {[%clk
0:02:58.4]} 11... Bxf6 {[%clk 0:03:08.8]} 12. Nd2 {[%clk 0:02:52.3]} 12... Bg7
{[%clk 0:03:09]} 13. c5 {[%clk 0:02:48.4]} 13... Nd4 {[%clk 0:02:46.5]} 14. cxd6
{[%clk 0:02:42.4]} 14... cxd6 {[%clk 0:02:47.7]} 15. e3 {[%clk 0:02:39.8]} 15...
Ne6 {[%clk 0:02:47.2]} 16. Rc1 {[%clk 0:02:37.1]} 16... Nc5 {[%clk 0:02:47]} 17.
Nc4 {[%clk 0:02:34.1]} 17... a4 {[%clk 0:02:37.5]} 18. Nb5 {[%clk 0:02:27.9]}
18... Bf8 {[%clk 0:02:32.6]} 19. d4 {[%clk 0:02:24.7]} 19... Nb3 {[%clk
0:02:33.2]} 20. Rc3 {[%clk 0:02:22.8]} 20... exd4 {[%clk 0:02:22.1]} 21. exd4
{[%clk 0:02:24.7]} 21... Qd7 {[%clk 0:02:09]} 22. Nb6 {[%clk 0:02:20.7]} 22...
Qxb5 {[%clk 0:02:09.6]} 23. Nxa8 {[%clk 0:02:20.3]} 23... Qa5 {[%clk 0:01:50.8]}
24. Nc7 {[%clk 0:02:20.8]} 24... Rd8 {[%clk 0:01:52.2]} 25. Re1 {[%clk
0:02:15.7]} 25... Bg7 {[%clk 0:01:53.1]} 26. Re8+ {[%clk 0:02:15.6]} 26... Rxe8
{[%clk 0:01:53.8]} 27. Nxe8 {[%clk 0:02:17.5]} 27... Be6 {[%clk 0:01:34.2]} 28.
Nxg7 {[%clk 0:02:18.4]} 28... Kxg7 {[%clk 0:01:35.5]} 29. Bxb7 {[%clk
0:02:16.1]} 29... Bd5 {[%clk 0:01:29.9]} 30. Bxd5 {[%clk 0:02:13.4]} 30... Qxd5
{[%clk 0:01:31]} 31. Qd3 {[%clk 0:02:14]} 31... Nxd4 {[%clk 0:01:23.8]} 32. Qd1
{[%clk 0:02:10.4]} 32... Qe5 {[%clk 0:01:18.3]} 33. Re3 {[%clk 0:02:09.5]} 33...
Qf6 {[%clk 0:01:18.9]} 34. Qxa4 {[%clk 0:02:03.7]} 34... Nf5 {[%clk 0:01:14.9]}
35. Rc3 {[%clk 0:01:59.1]} 35... d5 {[%clk 0:01:13.8]} 36. Qd1 {[%clk
0:01:59.4]} 36... d4 {[%clk 0:01:14.5]} 37. Rd3 {[%clk 0:01:55.9]} 37... h5
{[%clk 0:01:15.6]} 38. b4 {[%clk 0:01:52]} 38... Qe5 {[%clk 0:01:16.7]} 39. a4
{[%clk 0:01:47.4]} 39... Qe4 {[%clk 0:01:14.9]} 40. a5 {[%clk 0:01:44.8]} 40...
g5 {[%clk 0:01:15.8]} 41. a6 {[%clk 0:01:39.8]} 41... g4 {[%clk 0:01:09.8]} 42.
a7 {[%clk 0:01:34]} 42... h4 {[%clk 0:01:08]} 43. Ra3 {[%clk 0:01:29.6]} 1-0

[Event "*** Titled Tuesday 3|2 Blitz (Early)"]
[Site "Chess.com"]
[Date "2017.01.03"]
[Round "5"]
[White "Izoria123"]
[Black "Buffy7"]
[Result "1-0"]
[WhiteElo "2697"]
[BlackElo "2494"]
[TimeControl "180+2"]
[EndTime "12:01:35 PST"]
[Termination "Izoria123 won by checkmate"]

1. Nf3 {[%clk 0:03:02]} 1... d5 {[%clk 0:02:58.9]} 2. c4 {[%clk 0:03:02.7]} 2...
c6 {[%clk 0:03:00.8]} 3. g3 {[%clk 0:03:03.1]} 3... Nf6 {[%clk 0:03:02]} 4. Bg2
{[%clk 0:03:04.3]} 4... Bf5 {[%clk 0:03:03.4]} 5. cxd5 {[%clk 0:03:04.6]} 5...
cxd5 {[%clk 0:03:03.8]} 6. Qb3 {[%clk 0:03:05.2]} 6... Bc8 {[%clk 0:03:05.4]} 7.
O-O {[%clk 0:03:02.6]} 7... Nc6 {[%clk 0:03:06.6]} 8. d3 {[%clk 0:03:02.4]} 8...
e6 {[%clk 0:03:05.8]} 9. e4 {[%clk 0:03:00.4]} 9... Be7 {[%clk 0:03:02.7]} 10.
e5 {[%clk 0:02:57.6]} 10... Nd7 {[%clk 0:03:03.7]} 11. d4 {[%clk 0:02:58.9]}
11... O-O {[%clk 0:03:03.5]} 12. Nc3 {[%clk 0:02:58.8]} 12... b6 {[%clk
0:02:54.7]} 13. Rd1 {[%clk 0:02:55.1]} 13... Na5 {[%clk 0:02:50.9]} 14. Qc2
{[%clk 0:02:55.6]} 14... Ba6 {[%clk 0:02:51.8]} 15. h4 {[%clk 0:02:52.4]} 15...
h6 {[%clk 0:02:31.6]} 16. Bf1 {[%clk 0:02:36.8]} 16... Bxf1 {[%clk 0:02:31]} 17.
Kxf1 {[%clk 0:02:38.7]} 17... Rc8 {[%clk 0:02:30.8]} 18. Kg2 {[%clk 0:02:35]}
18... Nc4 {[%clk 0:02:27.8]} 19. Qd3 {[%clk 0:02:33]} 19... b5 {[%clk
0:02:23.5]} 20. b3 {[%clk 0:02:22.9]} 20... b4 {[%clk 0:02:19.9]} 21. Ne2 {[%clk
0:01:59.6]} 21... Na3 {[%clk 0:02:18.8]} 22. Bxa3 {[%clk 0:01:40.4]} 22... bxa3
{[%clk 0:02:20.7]} 23. Nf4 {[%clk 0:01:40.6]} 23... Qc7 {[%clk 0:02:13.9]} 24.
Rac1 {[%clk 0:01:27]} 24... Qb7 {[%clk 0:02:05.3]} 25. g4 {[%clk 0:01:18.7]}
25... Rxc1 {[%clk 0:02:03.4]} 26. Rxc1 {[%clk 0:01:20.6]} 26... Rc8 {[%clk
0:02:04.5]} 27. Rxc8+ {[%clk 0:01:05.5]} 27... Qxc8 {[%clk 0:02:06.4]} 28. g5
{[%clk 0:01:06.9]} 28... hxg5 {[%clk 0:02:06.1]} 29. hxg5 {[%clk 0:01:06.8]}
29... Qc1 {[%clk 0:01:57.9]} 30. Kg3 {[%clk 0:01:07.5]} 30... Nf8 {[%clk
0:01:43.6]} 31. g6 {[%clk 0:01:08.5]} 31... Qb2 {[%clk 0:01:08.6]} 32. gxf7+
{[%clk 0:01:08.6]} 32... Kxf7 {[%clk 0:01:10.1]} 33. Qa6 {[%clk 0:01:10.2]}
33... Qxa2 {[%clk 0:01:05.7]} 34. Qxa7 {[%clk 0:01:10.4]} 34... Qxb3 {[%clk
0:01:06.6]} 35. Kg4 {[%clk 0:01:10.4]} 35... Qd1 {[%clk 0:00:52]} 36. Kg3 {[%clk
0:01:07.8]} 36... Qb3 {[%clk 0:00:49.5]} 37. Kg2 {[%clk 0:01:09.1]} 37... Qb4
{[%clk 0:00:47]} 38. Ng5+ {[%clk 0:01:05.5]} 38... Kg8 {[%clk 0:00:47.2]} 39.
Ngxe6 {[%clk 0:01:03.8]} 39... Nxe6 {[%clk 0:00:44.1]} 40. Nxe6 {[%clk
0:01:05.7]} 40... Kh7 {[%clk 0:00:35.9]} 41. Qa8 {[%clk 0:00:34.1]} 41... Qb1
{[%clk 0:00:31]} 42. Nf4 {[%clk 0:00:31.6]} 42... Qe4+ {[%clk 0:00:17.1]} 43.
Kg3 {[%clk 0:00:32.7]} 43... Bg5 {[%clk 0:00:16.3]} 44. Nxd5 {[%clk 0:00:31.1]}
44... a2 {[%clk 0:00:16.5]} 45. Nf6+ {[%clk 0:00:30.8]} 45... Kh6 {[%clk
0:00:15.8]} 46. Qxe4 {[%clk 0:00:31.8]} 46... a1=Q {[%clk 0:00:16.9]} 47. Qh7#
{[%clk 0:00:32.6]} 1-0

[Event "*** Titled Tuesday 3|2 Blitz (Early)"]
[Site "Chess.com"]
[Date "2017.01.03"]
[Round "5"]
[White "ZhuChenChess"]
[Black "Marreuh"]
[Result "1-0"]
[WhiteElo "2325"]
[BlackElo "2086"]
[TimeControl "180+2"]
[EndTime "12:01:36 PST"]
[Termination "ZhuChenChess won by checkmate"]

1. d4 {[%clk 0:03:02]} 1... d5 {[%clk 0:02:58.7]} 2. c4 {[%clk 0:03:02.8]} 2...
e6 {[%clk 0:02:59.5]} 3. Nf3 {[%clk 0:03:00.7]} 3... c6 {[%clk 0:03:00.1]} 4.
Nc3 {[%clk 0:02:58.3]} 4... dxc4 {[%clk 0:03:00.7]} 5. e3 {[%clk 0:02:57.2]}
5... b5 {[%clk 0:03:01.3]} 6. a4 {[%clk 0:02:56.9]} 6... Bb4 {[%clk 0:03:02.8]}
7. axb5 {[%clk 0:02:53.1]} 7... cxb5 {[%clk 0:02:55.7]} 8. Bd2 {[%clk
0:02:47.1]} 8... Bxc3 {[%clk 0:02:55.9]} 9. Bxc3 {[%clk 0:02:44.7]} 9... a5
{[%clk 0:02:57.2]} 10. b3 {[%clk 0:02:45.6]} 10... Bb7 {[%clk 0:02:55.2]} 11.
bxc4 {[%clk 0:02:45.3]} 11... b4 {[%clk 0:02:56.5]} 12. Bb2 {[%clk 0:02:46.4]}
12... Nf6 {[%clk 0:02:50.9]} 13. Bd3 {[%clk 0:02:47.3]} 13... O-O {[%clk
0:02:47.5]} 14. O-O {[%clk 0:02:47.9]} 14... Nbd7 {[%clk 0:02:48.9]} 15. Nd2
{[%clk 0:01:54.1]} 15... Qc7 {[%clk 0:02:49.4]} 16. f4 {[%clk 0:01:23.9]} 16...
a4 {[%clk 0:02:49.2]} 17. e4 {[%clk 0:01:10.6]} 17... a3 {[%clk 0:02:43]} 18.
Bc1 {[%clk 0:01:09.5]} 18... Qd6 {[%clk 0:01:47.2]} 19. d5 {[%clk 0:00:59.8]}
19... Nc5 {[%clk 0:01:26.6]} 20. Bc2 {[%clk 0:00:33.5]} 20... e5 {[%clk
0:01:16.5]} 21. Qf3 {[%clk 0:00:22.5]} 21... Bc8 {[%clk 0:00:58.4]} 22. Nb3
{[%clk 0:00:22]} 22... Bg4 {[%clk 0:00:50.7]} 23. Qg3 {[%clk 0:00:18.7]} 23...
Nxb3 {[%clk 0:00:49.8]} 24. Bxb3 {[%clk 0:00:19.2]} 24... exf4 {[%clk 0:00:50]}
25. Bxf4 {[%clk 0:00:19.3]} 25... Qc5+ {[%clk 0:00:45.1]} 26. Be3 {[%clk
0:00:20.2]} 26... Qc8 {[%clk 0:00:44.3]} 27. e5 {[%clk 0:00:21]} 27... Ne4
{[%clk 0:00:44.4]} 28. Qf4 {[%clk 0:00:21.1]} 28... Nc5 {[%clk 0:00:39.7]} 29.
Bxc5 {[%clk 0:00:19.1]} 29... Qxc5+ {[%clk 0:00:41.6]} 30. Kh1 {[%clk
0:00:20.4]} 30... Bh5 {[%clk 0:00:38.2]} 31. h3 {[%clk 0:00:21.4]} 31... Bg6
{[%clk 0:00:38.1]} 32. d6 {[%clk 0:00:20.8]} 32... Rfe8 {[%clk 0:00:35.5]} 33.
Rfd1 {[%clk 0:00:19.8]} 33... Qxe5 {[%clk 0:00:28.9]} 34. Qxe5 {[%clk
0:00:15.8]} 34... Rxe5 {[%clk 0:00:30.8]} 35. d7 {[%clk 0:00:16.7]} 35... Rd8
{[%clk 0:00:29.4]} 36. Ba4 {[%clk 0:00:16.6]} 36... Kf8 {[%clk 0:00:28.7]} 37.
Rdc1 {[%clk 0:00:09.1]} 37... Rc5 {[%clk 0:00:26.6]} 38. Re1 {[%clk 0:00:08.9]}
38... Bf5 {[%clk 0:00:26]} 39. Re8+ {[%clk 0:00:09.3]} 39... Rxe8 {[%clk
0:00:26.8]} 40. dxe8=Q# {[%clk 0:00:10.1]} 1-0

[Event "*** Titled Tuesday 3|2 Blitz (Early)"]
[Site "Chess.com"]
[Date "2017.01.03"]
[Round "5"]
[White "Spas_Kozhuharov"]
[Black "AlexanderL"]
[Result "1-0"]
[WhiteElo "2489"]
[BlackElo "2565"]
[TimeControl "180+2"]
[EndTime "12:01:44 PST"]
[Termination "Spas_Kozhuharov won by resignation"]

1. d4 {[%clk 0:03:01.4]} 1... e6 {[%clk 0:03:01.9]} 2. Nf3 {[%clk 0:02:59.2]}
2... c5 {[%clk 0:03:01.7]} 3. e3 {[%clk 0:02:57.6]} 3... d5 {[%clk 0:02:59.8]}
4. c4 {[%clk 0:02:54.8]} 4... Nf6 {[%clk 0:02:59.8]} 5. Nc3 {[%clk 0:02:53.7]}
5... cxd4 {[%clk 0:02:59.5]} 6. exd4 {[%clk 0:02:55.6]} 6... Bb4 {[%clk
0:03:00.1]} 7. cxd5 {[%clk 0:02:54.5]} 7... Nxd5 {[%clk 0:03:00.2]} 8. Bd2
{[%clk 0:02:54.1]} 8... Nc6 {[%clk 0:03:00.5]} 9. Bd3 {[%clk 0:02:53.6]} 9...
O-O {[%clk 0:03:00.3]} 10. O-O {[%clk 0:02:53.1]} 10... Nf6 {[%clk 0:03:00.8]}
11. Be3 {[%clk 0:02:46.8]} 11... b6 {[%clk 0:02:58.6]} 12. Rc1 {[%clk 0:02:29]}
12... Bb7 {[%clk 0:02:59]} 13. Qe2 {[%clk 0:02:24.4]} 13... Be7 {[%clk
0:02:56.7]} 14. Rfd1 {[%clk 0:02:23.7]} 14... Nb4 {[%clk 0:02:56.6]} 15. Bb1
{[%clk 0:02:22.7]} 15... Rc8 {[%clk 0:02:52.2]} 16. Ne5 {[%clk 0:02:22.7]} 16...
Nbd5 {[%clk 0:02:50]} 17. Bd2 {[%clk 0:02:17]} 17... Qd6 {[%clk 0:02:40]} 18.
Qd3 {[%clk 0:02:12.5]} 18... Nxc3 {[%clk 0:02:32.5]} 19. bxc3 {[%clk 0:02:09.3]}
19... Be4 {[%clk 0:02:33.3]} 20. Qe3 {[%clk 0:02:04.6]} 20... Bxb1 {[%clk
0:02:34.2]} 21. Rxb1 {[%clk 0:02:06.4]} 21... Qd5 {[%clk 0:02:33.3]} 22. a4
{[%clk 0:02:01.1]} 22... Rfd8 {[%clk 0:02:29.7]} 23. Qe2 {[%clk 0:01:55.9]}
23... Ne4 {[%clk 0:02:11.3]} 24. Rb5 {[%clk 0:01:46]} 24... Qa8 {[%clk
0:01:59.9]} 25. Qf3 {[%clk 0:01:20.1]} 25... f6 {[%clk 0:01:52.6]} 26. Qh3
{[%clk 0:00:57.7]} 26... fxe5 {[%clk 0:01:23.1]} 27. Qxe6+ {[%clk 0:00:57.1]}
27... Kh8 {[%clk 0:01:24.3]} 28. Qxe7 {[%clk 0:00:56.5]} 28... exd4 {[%clk
0:01:25.6]} 29. Bh6 {[%clk 0:00:33]} 29... gxh6 {[%clk 0:01:01]} 30. Qe5+ {[%clk
0:00:33.4]} 30... Kg8 {[%clk 0:01:02.2]} 31. Qe6+ {[%clk 0:00:34.4]} 31... Kg7
{[%clk 0:01:03.2]} 32. Qe7+ {[%clk 0:00:35.2]} 32... Kg6 {[%clk 0:01:04.2]} 33.
Qe6+ {[%clk 0:00:32.7]} 33... Nf6 {[%clk 0:01:05.2]} 34. Rf5 {[%clk 0:00:24.4]}
34... Rf8 {[%clk 0:00:56.1]} 35. Rxd4 {[%clk 0:00:23.8]} 35... h5 {[%clk
0:00:30.4]} 36. Rd6 {[%clk 0:00:22.9]} 1-0